[Event "*** Titled Tuesday Blitz"]
[Site "Chess.com"]
[Date "2020.04.07"]
[Round "3"]
[White "BaMBoMaTTo"]
[Black "Fianchettoed-Tower"]
[Result "1-0"]
[WhiteElo "2749"]
[BlackElo "2373"]
[TimeControl "180+1"]
[EndTime "13:29:29 PDT"]
[Termination "BaMBoMaTTo won by resignation"]

1. d4 {[%clk 0:02:59.2]} 1... d5 {[%clk 0:02:57.7]} 2. c4 {[%clk 0:02:59.7]}
2... c6 {[%clk 0:02:58.2]} 3. Nf3 {[%clk 0:02:59.2]} 3... Nf6 {[%clk 0:02:58.6]}
4. Nc3 {[%clk 0:02:59.5]} 4... dxc4 {[%clk 0:02:58.7]} 5. a4 {[%clk 0:02:58.8]}
5... Bf5 {[%clk 0:02:58.3]} 6. Ne5 {[%clk 0:02:59.1]} 6... Nbd7 {[%clk
0:02:57.7]} 7. Nxc4 {[%clk 0:02:59.5]} 7... Nb6 {[%clk 0:02:58.3]} 8. Ne5 {[%clk
0:02:59.2]} 8... a5 {[%clk 0:02:58.1]} 9. f3 {[%clk 0:02:59]} 9... Nfd7 {[%clk
0:02:58.5]} 10. Nxd7 {[%clk 0:02:58.8]} 10... Nxd7 {[%clk 0:02:54.2]} 11. e4
{[%clk 0:02:58.8]} 11... Bg6 {[%clk 0:02:54.3]} 12. Be3 {[%clk 0:02:55]} 12...
e6 {[%clk 0:02:54.3]} 13. Be2 {[%clk 0:02:51.7]} 13... Bb4 {[%clk 0:02:54.6]}
14. O-O {[%clk 0:02:51.2]} 14... O-O {[%clk 0:02:53.7]} 15. Qb3 {[%clk
0:02:51.6]} 15... Qe7 {[%clk 0:02:38.3]} 16. Rac1 {[%clk 0:02:47.7]} 16... f6
{[%clk 0:02:31.5]} 17. Rfd1 {[%clk 0:02:44.8]} 17... Bf7 {[%clk 0:02:31.8]} 18.
Na2 {[%clk 0:02:35.1]} 18... Bd6 {[%clk 0:02:17.3]} 19. Rd2 {[%clk 0:02:22.5]}
19... Rab8 {[%clk 0:02:07.3]} 20. Qc3 {[%clk 0:02:09.8]} 20... Ra8 {[%clk
0:02:03.2]} 21. Qb3 {[%clk 0:01:57.9]} 21... Rab8 {[%clk 0:02:02.1]} 22. Bc4
{[%clk 0:01:50.5]} 22... Rfc8 {[%clk 0:01:18.1]} 23. Rdc2 {[%clk 0:01:41.8]}
23... Bc7 {[%clk 0:00:56.2]} 24. Qd3 {[%clk 0:01:16.4]} 24... Rd8 {[%clk
0:00:51.3]} 25. Qe2 {[%clk 0:01:12.7]} 25... Bb6 {[%clk 0:00:50.5]} 26. Rd1
{[%clk 0:01:07.7]} 26... e5 {[%clk 0:00:46.8]} 27. d5 {[%clk 0:00:54.6]} 27...
Nc5 {[%clk 0:00:28.8]} 28. d6 {[%clk 0:00:39.7]} 28... Rxd6 {[%clk 0:00:20.5]}
29. Bxf7+ {[%clk 0:00:34.5]} 29... Qxf7 {[%clk 0:00:21.4]} 30. Rxd6 {[%clk
0:00:33.9]} 30... Qxa2 {[%clk 0:00:20.6]} 31. Bxc5 {[%clk 0:00:32.4]} 31... Qb1+
{[%clk 0:00:20.9]} 32. Rd1 {[%clk 0:00:30.3]} 32... Bxc5+ {[%clk 0:00:18.1]} 33.
Rxc5 {[%clk 0:00:31.2]} 33... Qa2 {[%clk 0:00:14.9]} 34. Qc4+ {[%clk 0:00:31.4]}
34... Qxc4 {[%clk 0:00:15.3]} 35. Rxc4 {[%clk 0:00:32.3]} 1-0

[Event "*** Titled Tuesday Blitz"]
[Site "Chess.com"]
[Date "2020.04.07"]
[Round "3"]
[White "DonPreuss"]
[Black "florianschwabeneder"]
[Result "0-1"]
[WhiteElo "2164"]
[BlackElo "2513"]
[TimeControl "180+1"]
[EndTime "13:29:29 PDT"]
[Termination "florianschwabeneder won by resignation"]

1. d4 {[%clk 0:03:00.9]} 1... Nf6 {[%clk 0:02:59.1]} 2. Nc3 {[%clk 0:03:00.3]}
2... c5 {[%clk 0:02:55.2]} 3. d5 {[%clk 0:02:58.6]} 3... d6 {[%clk 0:02:54.8]}
4. e4 {[%clk 0:02:58.4]} 4... g6 {[%clk 0:02:54.8]} 5. f4 {[%clk 0:02:57.6]}
5... Bg7 {[%clk 0:02:53.5]} 6. Nf3 {[%clk 0:02:57.7]} 6... O-O {[%clk 0:02:53]}
7. Be2 {[%clk 0:02:49.8]} 7... b5 {[%clk 0:02:51.3]} 8. Qd3 {[%clk 0:02:26.4]}
8... b4 {[%clk 0:02:32.9]} 9. Nd1 {[%clk 0:02:24.1]} 9... e6 {[%clk 0:02:24.5]}
10. c4 {[%clk 0:02:20.5]} 10... exd5 {[%clk 0:02:22]} 11. exd5 {[%clk 0:02:18]}
11... Bf5 {[%clk 0:02:16.8]} 12. Qe3 {[%clk 0:02:12.1]} 12... Re8 {[%clk
0:02:14.9]} 13. Qg1 {[%clk 0:02:05]} 13... Ng4 {[%clk 0:01:50.8]} 14. h3 {[%clk
0:01:53]} 14... Qe7 {[%clk 0:01:43.7]} 15. Qf1 {[%clk 0:01:50.3]} 15... Bd3
{[%clk 0:01:41]} 16. Ng1 {[%clk 0:01:50]} 16... Nf6 {[%clk 0:00:54.2]} 17. Ne3
{[%clk 0:01:42.2]} 17... Bxe2 {[%clk 0:00:54.2]} 18. Qxe2 {[%clk 0:01:24.3]}
18... Ne4 {[%clk 0:00:45.6]} 19. Qf3 {[%clk 0:01:19.7]} 19... Qh4+ {[%clk
0:00:42.8]} 20. g3 {[%clk 0:00:32.5]} 20... Nxg3 {[%clk 0:00:36.2]} 21. Kf2
{[%clk 0:00:30.9]} 21... Nxh1+ {[%clk 0:00:30.9]} 22. Kg2 {[%clk 0:00:31.2]}
22... Nd7 {[%clk 0:00:23]} 23. Kxh1 {[%clk 0:00:29]} 23... Nf6 {[%clk
0:00:23.1]} 24. Kg2 {[%clk 0:00:25.8]} 24... Ne4 {[%clk 0:00:22.5]} 25. Ne2
{[%clk 0:00:25]} 25... f5 {[%clk 0:00:21.2]} 26. Rb1 {[%clk 0:00:24.9]} 26...
Re7 {[%clk 0:00:20.4]} 27. b3 {[%clk 0:00:25.3]} 27... Rae8 {[%clk 0:00:20.2]}
28. Qf1 {[%clk 0:00:20.1]} 28... Nc3 {[%clk 0:00:16]} 29. Nxc3 {[%clk
0:00:19.7]} 29... Bxc3 {[%clk 0:00:16.9]} 30. Qf3 {[%clk 0:00:20]} 30... Bd4
{[%clk 0:00:16.3]} 31. Nf1 {[%clk 0:00:18.3]} 31... Re2+ {[%clk 0:00:15.8]} 32.
Kh1 {[%clk 0:00:18.6]} 32... Re1 {[%clk 0:00:15.9]} 33. Qg2 {[%clk 0:00:15]}
33... R8e2 {[%clk 0:00:14.7]} 34. Qg1 {[%clk 0:00:14.9]} 34... Qxh3+ {[%clk
0:00:13.7]} 0-1

[Event "*** Titled Tuesday Blitz"]
[Site "Chess.com"]
[Date "2020.04.07"]
[Round "3"]
[White "Vojtastr"]
[Black "Sesleria"]
[Result "1-0"]
[WhiteElo "2504"]
[BlackElo "1972"]
[TimeControl "180+1"]
[EndTime "13:29:29 PDT"]
[Termination "Vojtastr won by resignation"]

1. c4 {[%clk 0:03:00.9]} 1... c5 {[%clk 0:02:54.4]} 2. Nc3 {[%clk 0:03:00.2]}
2... Nc6 {[%clk 0:02:53.6]} 3. Nf3 {[%clk 0:02:59.3]} 3... Nf6 {[%clk
0:02:50.9]} 4. d4 {[%clk 0:02:57.1]} 4... cxd4 {[%clk 0:02:49.9]} 5. Nxd4 {[%clk
0:02:58]} 5... e6 {[%clk 0:02:50.3]} 6. a3 {[%clk 0:02:57.7]} 6... Qb6 {[%clk
0:02:44.6]} 7. Nb3 {[%clk 0:02:56.4]} 7... Be7 {[%clk 0:02:42.6]} 8. Be3 {[%clk
0:02:15.4]} 8... Qc7 {[%clk 0:02:33.5]} 9. g3 {[%clk 0:02:14.2]} 9... a6 {[%clk
0:02:31.9]} 10. Bg2 {[%clk 0:02:13.8]} 10... d6 {[%clk 0:02:29.8]} 11. O-O
{[%clk 0:02:00.5]} 11... O-O {[%clk 0:02:29.5]} 12. Rc1 {[%clk 0:02:00.2]} 12...
Ne5 {[%clk 0:02:24.4]} 13. Nd2 {[%clk 0:01:42.9]} 13... Bd7 {[%clk 0:02:18.9]}
14. Bd4 {[%clk 0:01:24]} 14... Nc6 {[%clk 0:02:14.3]} 15. Nd5 {[%clk 0:01:22.1]}
15... Qd8 {[%clk 0:02:05.4]} 16. Nxe7+ {[%clk 0:01:20]} 16... Qxe7 {[%clk
0:02:04.7]} 17. Bc3 {[%clk 0:01:16.7]} 17... d5 {[%clk 0:01:59.4]} 18. e3 {[%clk
0:00:57.4]} 18... Rfd8 {[%clk 0:01:35.6]} 19. Qe2 {[%clk 0:00:57]} 19... d4
{[%clk 0:01:24.9]} 20. exd4 {[%clk 0:00:56.4]} 20... Qd6 {[%clk 0:01:18.2]} 21.
Nf3 {[%clk 0:00:48.1]} 21... Rac8 {[%clk 0:01:13.9]} 22. Ne5 {[%clk 0:00:44.2]}
22... Nxd4 {[%clk 0:01:09.5]} 23. Bxd4 {[%clk 0:00:20.2]} 23... Qxd4 {[%clk
0:01:09.3]} 24. Bxb7 {[%clk 0:00:19.6]} 24... Rb8 {[%clk 0:01:07.4]} 25. Rfd1
{[%clk 0:00:16.1]} 25... Qb6 {[%clk 0:00:57.6]} 26. Bf3 {[%clk 0:00:14.2]} 26...
Qxb2 {[%clk 0:00:51.5]} 27. Qxb2 {[%clk 0:00:15.1]} 27... Rxb2 {[%clk
0:00:51.4]} 28. Bc6 {[%clk 0:00:14.1]} 28... Bxc6 {[%clk 0:00:27.2]} 29. Rxd8+
{[%clk 0:00:13.7]} 29... Be8 {[%clk 0:00:27.8]} 30. Nd7 {[%clk 0:00:14.1]} 30...
Nxd7 {[%clk 0:00:22.1]} 31. Rxe8+ {[%clk 0:00:14]} 31... Nf8 {[%clk 0:00:23]}
32. Rd1 {[%clk 0:00:14.6]} 32... g6 {[%clk 0:00:23.2]} 33. Rdd8 {[%clk
0:00:14.1]} 33... Kg7 {[%clk 0:00:22.7]} 34. Rxf8 {[%clk 0:00:14.5]} 1-0

[Event "*** Titled Tuesday Blitz"]
[Site "Chess.com"]
[Date "2020.04.07"]
[Round "3"]
[White "Ariadna_Atreides"]
[Black "dopolian"]
[Result "1-0"]
[WhiteElo "2048"]
[BlackElo "2489"]
[TimeControl "180+1"]
[EndTime "13:29:30 PDT"]
[Termination "Ariadna_Atreides won on time"]

1. d4 {[%clk 0:02:58.2]} 1... Nf6 {[%clk 0:02:59.7]} 2. Nf3 {[%clk 0:02:57.8]}
2... e6 {[%clk 0:02:59.6]} 3. e3 {[%clk 0:02:55]} 3... d5 {[%clk 0:02:58.6]} 4.
Bd3 {[%clk 0:02:54]} 4... c5 {[%clk 0:02:57.2]} 5. b3 {[%clk 0:02:49.6]} 5...
Nc6 {[%clk 0:02:56.4]} 6. O-O {[%clk 0:02:47.2]} 6... Bd6 {[%clk 0:02:52.6]} 7.
Bb2 {[%clk 0:02:42.8]} 7... O-O {[%clk 0:02:49]} 8. Nbd2 {[%clk 0:02:29.3]} 8...
Qe7 {[%clk 0:02:36.8]} 9. e4 {[%clk 0:02:02.2]} 9... cxd4 {[%clk 0:02:27.2]} 10.
Nxd4 {[%clk 0:01:57.6]} 10... Nxd4 {[%clk 0:02:21.4]} 11. Bxd4 {[%clk
0:01:54.7]} 11... e5 {[%clk 0:02:20.9]} 12. Bb2 {[%clk 0:01:54.1]} 12... d4
{[%clk 0:01:59.2]} 13. Nc4 {[%clk 0:01:53.1]} 13... Bc7 {[%clk 0:01:55.2]} 14.
Ba3 {[%clk 0:01:52.2]} 14... Qe6 {[%clk 0:01:48.1]} 15. Bxf8 {[%clk 0:01:51.6]}
15... Kxf8 {[%clk 0:01:49]} 16. a4 {[%clk 0:01:47.3]} 16... Bd7 {[%clk
0:01:46.9]} 17. Qd2 {[%clk 0:01:40]} 17... Nh5 {[%clk 0:01:34.9]} 18. Qb4+
{[%clk 0:01:34.4]} 18... Kg8 {[%clk 0:01:25.1]} 19. Qxb7 {[%clk 0:01:34.2]}
19... Rc8 {[%clk 0:01:25.3]} 20. Qd5 {[%clk 0:01:26.8]} 20... Qe7 {[%clk
0:01:11.7]} 21. g3 {[%clk 0:01:05.3]} 21... Bh3 {[%clk 0:00:51.9]} 22. Rfd1
{[%clk 0:01:02.1]} 22... Qf6 {[%clk 0:00:38.9]} 23. Bf1 {[%clk 0:00:47.6]} 23...
Bg4 {[%clk 0:00:38.8]} 24. Rd2 {[%clk 0:00:45.8]} 24... Bf3 {[%clk 0:00:30]} 25.
Bg2 {[%clk 0:00:44.5]} 25... Nf4 {[%clk 0:00:17.2]} 26. Qd7 {[%clk 0:00:38.5]}
26... Rd8 {[%clk 0:00:15.7]} 27. Qxc7 {[%clk 0:00:31.3]} 27... Nxg2 {[%clk
0:00:13.4]} 28. Qxe5 {[%clk 0:00:28]} 28... Qh6 {[%clk 0:00:09.8]} 29. Rxd4
{[%clk 0:00:26.6]} 29... Rf8 {[%clk 0:00:06.3]} 30. Qf5 {[%clk 0:00:21]} 1-0

[Event "*** Titled Tuesday Blitz"]
[Site "Chess.com"]
[Date "2020.04.07"]
[Round "3"]
[White "Mbneu"]
[Black "Dixit_Nikhil"]
[Result "0-1"]
[WhiteElo "2264"]
[BlackElo "2496"]
[TimeControl "180+1"]
[EndTime "13:29:30 PDT"]
[Termination "Dixit_Nikhil won by resignation"]

1. d4 {[%clk 0:03:00.9]} 1... Nf6 {[%clk 0:02:56.6]} 2. c4 {[%clk 0:03:01.3]}
2... g6 {[%clk 0:02:55.3]} 3. Nc3 {[%clk 0:03:00.9]} 3... Bg7 {[%clk 0:02:54.9]}
4. e4 {[%clk 0:03:00.3]} 4... d6 {[%clk 0:02:55.3]} 5. f4 {[%clk 0:03:00.7]}
5... O-O {[%clk 0:02:55.4]} 6. Nf3 {[%clk 0:03:01.2]} 6... c5 {[%clk 0:02:56]}
7. d5 {[%clk 0:03:01.5]} 7... e6 {[%clk 0:02:56]} 8. Be2 {[%clk 0:03:01.2]} 8...
exd5 {[%clk 0:02:56.6]} 9. cxd5 {[%clk 0:03:01.8]} 9... Na6 {[%clk 0:02:54.5]}
10. e5 {[%clk 0:02:57.1]} 10... Ne8 {[%clk 0:02:52.7]} 11. O-O {[%clk
0:02:50.2]} 11... Nac7 {[%clk 0:02:46.1]} 12. a4 {[%clk 0:02:45.9]} 12... b6
{[%clk 0:02:45.6]} 13. Bc4 {[%clk 0:02:40.2]} 13... Kh8 {[%clk 0:02:43.2]} 14.
e6 {[%clk 0:02:31]} 14... fxe6 {[%clk 0:02:42.4]} 15. dxe6 {[%clk 0:02:31]}
15... Bxe6 {[%clk 0:02:41.9]} 16. Bd3 {[%clk 0:02:09.1]} 16... d5 {[%clk
0:02:41]} 17. Ng5 {[%clk 0:02:08.6]} 17... Bf5 {[%clk 0:02:39.3]} 18. Nb5 {[%clk
0:01:55.3]} 18... Nxb5 {[%clk 0:02:38.1]} 19. axb5 {[%clk 0:01:54.9]} 19... Nd6
{[%clk 0:02:37.9]} 20. Bxf5 {[%clk 0:01:52.1]} 20... Rxf5 {[%clk 0:02:38.8]} 21.
Ne6 {[%clk 0:01:47.9]} 21... Qd7 {[%clk 0:02:39]} 22. Nxg7 {[%clk 0:01:47.2]}
22... Qxg7 {[%clk 0:02:38.2]} 23. g4 {[%clk 0:01:44.2]} 23... Rf7 {[%clk
0:02:38.3]} 24. Qxd5 {[%clk 0:01:43.3]} 24... Qd4+ {[%clk 0:02:36.8]} 25. Qxd4+
{[%clk 0:01:42.5]} 25... cxd4 {[%clk 0:02:37.7]} 26. b3 {[%clk 0:01:30.6]} 26...
Nxb5 {[%clk 0:02:36.9]} 27. Bb2 {[%clk 0:01:30.3]} 27... Kg8 {[%clk 0:02:35.1]}
28. Rad1 {[%clk 0:01:24.1]} 28... Rd7 {[%clk 0:02:33.7]} 29. f5 {[%clk
0:01:22.6]} 29... Rad8 {[%clk 0:02:33.3]} 30. fxg6 {[%clk 0:01:21.9]} 30... hxg6
{[%clk 0:02:34.2]} 31. Rf4 {[%clk 0:01:21]} 31... Nc3 {[%clk 0:02:33.8]} 32. Rd2
{[%clk 0:01:12.8]} 32... b5 {[%clk 0:02:26.2]} 33. b4 {[%clk 0:01:12.1]} 33...
a5 {[%clk 0:02:14.3]} 34. bxa5 {[%clk 0:01:07.8]} 34... b4 {[%clk 0:02:15.2]}
35. Kf2 {[%clk 0:01:03.2]} 35... Rd5 {[%clk 0:02:13.5]} 36. Rf6 {[%clk
0:01:01.4]} 36... Kg7 {[%clk 0:02:09.2]} 37. Rb6 {[%clk 0:01:01.1]} 37... Ne4+
{[%clk 0:02:08.1]} 38. Ke2 {[%clk 0:01:00.1]} 38... Nxd2 {[%clk 0:02:09]} 39.
Kxd2 {[%clk 0:01:00.6]} 39... Rxa5 {[%clk 0:02:09.6]} 40. Rxb4 {[%clk
0:00:59.7]} 40... Rad5 {[%clk 0:02:04.8]} 41. h4 {[%clk 0:00:55.9]} 41... Kf7
{[%clk 0:02:00.7]} 42. h5 {[%clk 0:00:52.6]} 42... gxh5 {[%clk 0:01:57.3]} 43.
gxh5 {[%clk 0:00:52.3]} 43... d3 {[%clk 0:01:56.6]} 44. Rf4+ {[%clk 0:00:50.4]}
44... Ke6 {[%clk 0:01:54.4]} 45. h6 {[%clk 0:00:50.2]} 45... Rh5 {[%clk
0:01:40.2]} 46. Rf6+ {[%clk 0:00:28.5]} 46... Ke7 {[%clk 0:01:36.9]} 47. Bc3
{[%clk 0:00:21.3]} 47... Rh2+ {[%clk 0:01:34.6]} 48. Kd1 {[%clk 0:00:21]} 48...
d2 {[%clk 0:01:34]} 49. Rf1 {[%clk 0:00:16.6]} 49... Rc8 {[%clk 0:01:33.7]} 50.
Bb2 {[%clk 0:00:10.2]} 50... Rb8 {[%clk 0:01:30.6]} 51. Kc2 {[%clk 0:00:07.1]}
51... Rxb2+ {[%clk 0:01:29.3]} 52. Kxb2 {[%clk 0:00:06.7]} 52... d1=Q+ {[%clk
0:01:29.7]} 0-1

[Event "*** Titled Tuesday Blitz"]
[Site "Chess.com"]
[Date "2020.04.07"]
[Round "3"]
[White "1977Ivan"]
[Black "DDTerziev04"]
[Result "1-0"]
[WhiteElo "2736"]
[BlackElo "2255"]
[TimeControl "180+1"]
[EndTime "13:29:32 PDT"]
[Termination "1977Ivan won by resignation"]

1. d4 {[%clk 0:02:24.4]} 1... d5 {[%clk 0:02:59.3]} 2. c4 {[%clk 0:02:24.5]}
2... dxc4 {[%clk 0:02:58.9]} 3. e4 {[%clk 0:02:22.5]} 3... Nf6 {[%clk
0:02:58.3]} 4. e5 {[%clk 0:02:22.1]} 4... Nd5 {[%clk 0:02:58.4]} 5. Bxc4 {[%clk
0:02:22.6]} 5... Nb6 {[%clk 0:02:58.4]} 6. Bb3 {[%clk 0:02:22.3]} 6... Nc6
{[%clk 0:02:56.3]} 7. Nf3 {[%clk 0:02:15.8]} 7... Bg4 {[%clk 0:02:55.2]} 8. e6
{[%clk 0:02:08]} 8... Bxe6 {[%clk 0:02:41.1]} 9. Bxe6 {[%clk 0:02:06.3]} 9...
fxe6 {[%clk 0:02:41]} 10. Nc3 {[%clk 0:02:06.6]} 10... Qd7 {[%clk 0:02:32.9]}
11. O-O {[%clk 0:02:06.3]} 11... O-O-O {[%clk 0:02:32.3]} 12. Be3 {[%clk
0:02:06.8]} 12... Nd5 {[%clk 0:02:30.5]} 13. Ne4 {[%clk 0:02:05]} 13... Nxe3
{[%clk 0:02:19.1]} 14. fxe3 {[%clk 0:02:03.9]} 14... e5 {[%clk 0:02:08.3]} 15.
Nc5 {[%clk 0:01:39.4]} 15... Qd5 {[%clk 0:02:05.8]} 16. e4 {[%clk 0:01:39.1]}
16... Qd6 {[%clk 0:01:44.8]} 17. Qb3 {[%clk 0:01:38.5]} 17... b6 {[%clk
0:01:42.9]} 18. Qe6+ {[%clk 0:01:22.4]} 18... Qxe6 {[%clk 0:01:42.1]} 19. Nxe6
{[%clk 0:01:22]} 19... Re8 {[%clk 0:01:37.5]} 20. d5 {[%clk 0:01:11]} 20... Nd4
{[%clk 0:01:33.5]} 21. Nfxd4 {[%clk 0:01:10.7]} 21... exd4 {[%clk 0:01:33.4]}
22. Rac1 {[%clk 0:01:11.2]} 22... Kb8 {[%clk 0:01:29.8]} 23. Rxc7 {[%clk
0:01:10.1]} 23... g6 {[%clk 0:01:26.2]} 24. Rc4 {[%clk 0:00:31.5]} 24... Bh6
{[%clk 0:01:24.7]} 25. Kf2 {[%clk 0:00:20.8]} 25... Be3+ {[%clk 0:01:23.5]} 26.
Ke2 {[%clk 0:00:20.7]} 26... Rc8 {[%clk 0:01:23.2]} 27. Rxc8+ {[%clk 0:00:20.7]}
27... Rxc8 {[%clk 0:01:22.8]} 28. Kd3 {[%clk 0:00:21.2]} 28... a5 {[%clk
0:01:11.5]} 29. g4 {[%clk 0:00:20.8]} 29... Ka7 {[%clk 0:01:09.5]} 30. h4 {[%clk
0:00:20.6]} 30... Ka6 {[%clk 0:01:08.6]} 31. g5 {[%clk 0:00:20.4]} 31... b5
{[%clk 0:01:08.5]} 32. Nxd4 {[%clk 0:00:19.8]} 32... Bxd4 {[%clk 0:01:08.4]} 33.
Kxd4 {[%clk 0:00:19.9]} 33... Rc1 {[%clk 0:01:08.6]} 34. Rf7 {[%clk 0:00:19.7]}
34... Rc2 {[%clk 0:01:06.7]} 35. Rxe7 {[%clk 0:00:19.6]} 35... Rxb2 {[%clk
0:01:07.1]} 36. d6 {[%clk 0:00:19.9]} 36... Rxa2 {[%clk 0:01:06.8]} 37. e5
{[%clk 0:00:19.8]} 37... b4 {[%clk 0:01:06.5]} 38. d7 {[%clk 0:00:19.5]} 38...
Rd2+ {[%clk 0:01:05.1]} 39. Kc4 {[%clk 0:00:19.7]} 39... Rc2+ {[%clk 0:00:53.8]}
40. Kb3 {[%clk 0:00:19.1]} 40... Rc3+ {[%clk 0:00:53.3]} 41. Kb2 {[%clk
0:00:19.3]} 41... Rd3 {[%clk 0:00:49.5]} 42. Kc2 {[%clk 0:00:18.8]} 42... Rd5
{[%clk 0:00:48.1]} 43. Re6+ {[%clk 0:00:15.7]} 43... Kb5 {[%clk 0:00:46.9]} 44.
Rd6 {[%clk 0:00:15.2]} 1-0

[Event "*** Titled Tuesday Blitz"]
[Site "Chess.com"]
[Date "2020.04.07"]
[Round "3"]
[White "GMKrikor"]
[Black "littleozy"]
[Result "1-0"]
[WhiteElo "2799"]
[BlackElo "2473"]
[TimeControl "180+1"]
[EndTime "13:29:32 PDT"]
[Termination "GMKrikor won by resignation"]

1. Nf3 {[%clk 0:02:59.9]} 1... d5 {[%clk 0:02:58.6]} 2. c4 {[%clk 0:02:48.6]}
2... e6 {[%clk 0:02:55.4]} 3. e3 {[%clk 0:02:42.6]} 3... c6 {[%clk 0:02:54.6]}
4. Nc3 {[%clk 0:02:36.8]} 4... Nf6 {[%clk 0:02:54]} 5. b3 {[%clk 0:02:35.4]}
5... Bd6 {[%clk 0:02:53.7]} 6. Bb2 {[%clk 0:02:33.6]} 6... O-O {[%clk
0:02:53.1]} 7. Qc2 {[%clk 0:02:29.2]} 7... Nbd7 {[%clk 0:02:52.6]} 8. Be2 {[%clk
0:02:23.4]} 8... e5 {[%clk 0:02:51.5]} 9. cxd5 {[%clk 0:02:21.1]} 9... cxd5
{[%clk 0:02:50.6]} 10. Nb5 {[%clk 0:02:21.2]} 10... Bb8 {[%clk 0:02:44.1]} 11.
Rc1 {[%clk 0:02:19.7]} 11... a6 {[%clk 0:02:34.7]} 12. Nc7 {[%clk 0:02:18.6]}
12... Bxc7 {[%clk 0:02:33.9]} 13. Qxc7 {[%clk 0:02:19.5]} 13... Qxc7 {[%clk
0:02:28.1]} 14. Rxc7 {[%clk 0:02:20.4]} 14... Ne8 {[%clk 0:02:22.3]} 15. Rc1
{[%clk 0:02:05.4]} 15... e4 {[%clk 0:01:51.1]} 16. Nd4 {[%clk 0:01:53.2]} 16...
Nef6 {[%clk 0:01:49.7]} 17. Nf5 {[%clk 0:01:33.1]} 17... Rd8 {[%clk 0:01:34.7]}
18. f3 {[%clk 0:01:28.6]} 18... Nf8 {[%clk 0:01:26.4]} 19. Nh6+ {[%clk
0:01:13.4]} 19... gxh6 {[%clk 0:01:23.1]} 20. Bxf6 {[%clk 0:01:13.5]} 20... Rd6
{[%clk 0:01:19.2]} 21. Bb2 {[%clk 0:01:09.9]} 21... Be6 {[%clk 0:01:08.5]} 22.
d3 {[%clk 0:01:00.5]} 22... Rad8 {[%clk 0:00:59.2]} 23. Kd2 {[%clk 0:00:58.6]}
23... Ng6 {[%clk 0:00:53.8]} 24. g3 {[%clk 0:00:38.6]} 24... Ne7 {[%clk
0:00:43.4]} 25. f4 {[%clk 0:00:37.9]} 25... Nc6 {[%clk 0:00:39.1]} 26. g4 {[%clk
0:00:36.2]} 26... d4 {[%clk 0:00:35.2]} 27. dxe4 {[%clk 0:00:31.9]} 27... dxe3+
{[%clk 0:00:29.9]} 28. Kxe3 {[%clk 0:00:32.8]} 28... Rd2 {[%clk 0:00:26.6]} 29.
Bf6 {[%clk 0:00:25.9]} 29... R8d7 {[%clk 0:00:22.8]} 30. f5 {[%clk 0:00:22.6]}
30... Rxa2 {[%clk 0:00:15.6]} 31. fxe6 {[%clk 0:00:22.9]} 31... fxe6 {[%clk
0:00:15.5]} 32. Rhd1 {[%clk 0:00:20.9]} 32... Rf7 {[%clk 0:00:14.4]} 33. e5
{[%clk 0:00:21.1]} 33... h5 {[%clk 0:00:10.1]} 34. g5 {[%clk 0:00:20.7]} 1-0

[Event "*** Titled Tuesday Blitz"]
[Site "Chess.com"]
[Date "2020.04.07"]
[Round "3"]
[White "GMBenjaminFinegold"]
[Black "VALPARAISO37"]
[Result "1-0"]
[WhiteElo "2560"]
[BlackElo "2330"]
[TimeControl "180+1"]
[EndTime "13:29:33 PDT"]
[Termination "GMBenjaminFinegold won on time"]

1. b3 {[%clk 0:03:00.9]} 1... d5 {[%clk 0:02:59.2]} 2. Bb2 {[%clk 0:02:56.3]}
2... a5 {[%clk 0:02:58.6]} 3. a4 {[%clk 0:02:44.6]} 3... Bf5 {[%clk 0:02:57]} 4.
g3 {[%clk 0:02:30.7]} 4... Nf6 {[%clk 0:02:55.9]} 5. Bg2 {[%clk 0:02:29.4]} 5...
c6 {[%clk 0:02:56.3]} 6. Nf3 {[%clk 0:02:28]} 6... h6 {[%clk 0:02:55.2]} 7. d3
{[%clk 0:02:16.2]} 7... e6 {[%clk 0:02:52.7]} 8. Nbd2 {[%clk 0:02:14.1]} 8...
Bb4 {[%clk 0:02:52.4]} 9. O-O {[%clk 0:02:01.2]} 9... Nbd7 {[%clk 0:02:51.8]}
10. e3 {[%clk 0:01:50.2]} 10... Bg4 {[%clk 0:02:49.9]} 11. h3 {[%clk 0:01:49.7]}
11... Bh5 {[%clk 0:02:49]} 12. Qe2 {[%clk 0:01:49.7]} 12... Qc7 {[%clk
0:02:43.8]} 13. e4 {[%clk 0:01:41.5]} 13... O-O {[%clk 0:02:41.8]} 14. e5 {[%clk
0:01:38.9]} 14... Ne8 {[%clk 0:02:40.2]} 15. c3 {[%clk 0:01:37.8]} 15... Bc5
{[%clk 0:02:39.2]} 16. d4 {[%clk 0:01:37.7]} 16... Ba7 {[%clk 0:02:39]} 17. g4
{[%clk 0:01:33.7]} 17... Bg6 {[%clk 0:02:37.9]} 18. h4 {[%clk 0:01:33.8]} 18...
c5 {[%clk 0:02:35.9]} 19. h5 {[%clk 0:01:33.7]} 19... Bh7 {[%clk 0:02:35.5]} 20.
g5 {[%clk 0:01:33.5]} 20... hxg5 {[%clk 0:02:35.8]} 21. Nxg5 {[%clk 0:01:32.3]}
21... cxd4 {[%clk 0:02:36.1]} 22. Nxh7 {[%clk 0:01:32]} 22... dxc3 {[%clk
0:02:28.1]} 23. Nxf8 {[%clk 0:00:48.8]} 23... cxb2 {[%clk 0:02:26.6]} 24. Nxe6
{[%clk 0:00:40.8]} 24... bxa1=Q {[%clk 0:02:22.3]} 25. Nxc7 {[%clk 0:00:39]}
25... Qc3 {[%clk 0:02:07.5]} 26. Nxa8 {[%clk 0:00:35.8]} 26... Qc8 {[%clk
0:02:07.2]} 27. e6 {[%clk 0:00:33.7]} 27... Ndf6 {[%clk 0:02:05.5]} 28. exf7+
{[%clk 0:00:33.2]} 28... Kxf7 {[%clk 0:02:05.9]} 29. Re1 {[%clk 0:00:29]} 29...
Qxa8 {[%clk 0:02:05.4]} 30. Qe6+ {[%clk 0:00:27.9]} 30... Kf8 {[%clk 0:02:05.4]}
31. Nf3 {[%clk 0:00:28.2]} 31... Ne4 {[%clk 0:01:33.2]} 32. Rxe4 {[%clk
0:00:27.6]} 32... dxe4 {[%clk 0:01:32.6]} 33. Ne5 {[%clk 0:00:27.8]} 33... Bxf2+
{[%clk 0:00:49.4]} 34. Kh1 {[%clk 0:00:26.9]} 1-0